[Event "ROU-ch Women 2018"]
[Site "Olanesti"]
[Date "2018.05.17"]
[Round "4"]
[White "Peptan, Corina-Isabela"]
[Black "Cosman, Andreea-Marioara"]
[Result "1-0"]
[ECO "A48"]
[WhiteElo "2393"]
[BlackElo "2130"]
[Annotator "NA"]
[PlyCount "107"]
[EventDate "2018.??.??"]
[EventType "swiss"]
[EventCountry "ROU"]
[SourceTitle "playchess.com"]
[Source "ChessBase"]
[SourceQuality "1"]
[TimeControl "40/5400+30:1800+30"]

1. d4 {[%emt 0:00:00]} Nf6 {[%emt 0:00:05]} 2. Nf3 {[%emt 0:00:00]} g6 {[%emt 0:00:16]} 3. Bf4 {[%emt 0:01:16]} Bg7 {[%emt 0:01:00]} 4. e3 {[%emt 0:00:09]} d6 {[%emt 0:00:15]} 5. h3 {[%emt 0:00:06]} O-O {[%emt 0:00:15]} 6. Be2 {[%emt 0:01:45]} b6 {[%emt 0:00:32]} 7. O-O {[%emt 0:00:13]} Bb7 {[%emt 0:00:17]} 8. a4 {[%emt 0:01:57]} a6 {[%emt 0:06:16]} 9. Nbd2 {[%emt 0:04:48] A48: 1 d4 Nf6 2 Nf3 g6: Torre, London and Colle Systems} c5 {[%emt 0:06:14]} (9... Nbd7 10. Bh2 Ne4 11. Nxe4 Bxe4 12. c3 e5 13. Nd2 Bb7 14. Bf3 Qc8 15. Qb3 Rb8 16. Rfd1 Re8 {½-½ (33) Howell,D (2676)-Demchenko,A (2660) Riadh 2017}) 10. c3 {[%emt 0:05:45] LiveBook: 63 Games} Ne4 {[%emt 0:08:54]} 11. Nxe4 {[%emt 0:26:20]} Bxe4 {[%emt 0:00:13]} 12. d5 $146 {[%emt 0:00:14]} ({Predecessor:} 12. Qb3 Nd7 13. Rfd1 Qc7 14. Rac1 Bb7 15. Nd2 Nf6 16. Bf3 Bxf3 17. Nxf3 {0-1 (68) Hoang,T (2439)-Mkrtchian,L (2376) Riadh 2017}) 12... Bxf3 {[%emt 0:11:22]} 13. Bxf3 {[%emt 0:00:19]} Nd7 {[%emt 0:00:07]} 14. Be2 {[%emt 0:01:08]} Nf6 {[%emt 0:02:20]} 15. Qb3 {[%emt 0:06:39]} Qc7 {[%emt 0:12:40]} 16. Rfd1 {[%emt 0:05:19]} Rfc8 {[%emt 0:03:38]} 17. c4 {[%emt 0:03:32]} Rab8 {[%emt 0:05:44]} 18. Qc2 {[%emt 0:00:30]} Qb7 {[%emt 0:06:39]} 19. e4 {[%emt 0:00:36]} Ne8 {[%emt 0:01:11]} 20. Ra3 {[%emt 0:03:41]} Nc7 {[%emt 0:08:08]} 21. Rb3 {[%emt 0:00:23]} Rd8 {[%emt 0:00:07]} 22. Bg3 $14 {[%emt 0:09:27]} Bd4 {[%emt 0:05:35]} 23. Kh2 {[%emt 0:00:54]} e6 {[%emt 0:04:05]} 24. f4 {[%emt 0:08:19]} exd5 {[%emt 0:01:44]} 25. cxd5 {[%emt 0:00:13]} b5 {[%emt 0:03:55]} 26. axb5 {[%emt 0:00:12]} Nxb5 {[%emt 0:00:51]} 27. Bc4 {[%emt 0:00:43]} Re8 {[%emt 0:05:11]} 28. Re1 {[%emt 0:05:49]} Qd7 {[%emt 0:03:29]} 29. e5 {[%emt 0:02:44]} Kh8 {[%emt 0:02:25]} 30. Qd3 {[%emt 0:04:49]} g5 {[%emt 0:00:29]} 31. e6 {[%emt 0:00:46]} fxe6 {[%emt 0:00:21]} 32. dxe6 {[%emt 0:00:07]} Qg7 {[%emt 0:00:07]} 33. f5 {[%emt 0:01:33]} Rbd8 {[%emt 0:01:20]} 34. Bxb5 {[%emt 0:00:39]} axb5 {[%emt 0:00:04]} 35. Qxb5 {[%emt 0:00:19]} g4 {[%emt 0:00:07]} 36. h4 {[%emt 0:03:28]} Qf6 {[%emt 0:00:22]} 37. Rf1 {[%emt 0:01:54]} Be5 {[%emt 0:01:00]} 38. Bxe5 {[%emt 0:00:19]} Qxe5+ {[%emt 0:00:08]} 39. Kh1 {[%emt 0:00:55]} Qf6 {[%emt 0:01:07]} 40. g3 {[%emt 0:00:00]} d5 {[%emt 0:00:30]} 41. Qe2 {[%emt 0:09:10]} d4 {[%emt 0:07:17]} 42. Rf4 {[%emt 0:02:21]} Rd5 {[%emt 0:09:48]} 43. Qxg4 {[%emt 0:01:11]} d3 {[%emt 0:01:13]} 44. Qh5 {[%emt 0:10:26]} Rdd8 {[%emt 0:03:35]} 45. Rxd3 {[%emt 0:03:55]} Rxd3 {[%emt 0:09:54]} 46. Qxe8+ {[%emt 0:00:07]} Kg7 {[%emt 0:00:02]} 47. Kg2 {[%emt 0:07:10]} Kh6 {[%emt 0:02:12]} 48. e7 {[%emt 0:00:39]} Qxb2+ {[%emt 0:00:22]} 49. Rf2 {[%emt 0:00:26]} Rxg3+ {[%emt 0:00:32]} 50. Kxg3 {[%emt 0:00:04]} Qe5+ {[%emt 0:00:07]} 51. Kg4 {[%emt 0:01:20]} Qe4+ {[%emt 0:00:38]} 52. Kg3 {[%emt 0:00:09]} Qe3+ {[%emt 0:00:29]} 53. Rf3 {[%emt 0:00:55]} Qe5+ {[%emt 0:00:12]} 54. Kh3 {[%emt 0:00:07]} 1-0

[Event "ROU-ch Women 2018"]
[Site "Olanesti"]
[Date "2018.05.17"]
[Round "4"]
[White "Dragomirescu, Angela"]
[Black "Cosma, Elena-Luminita"]
[Result "1/2-1/2"]
[ECO "D30"]
[WhiteElo "2272"]
[BlackElo "2331"]
[Annotator "NA"]
[PlyCount "45"]
[EventDate "2018.??.??"]
[EventType "swiss"]
[EventCountry "ROU"]
[SourceTitle "playchess.com"]
[Source "ChessBase"]
[SourceQuality "1"]
[TimeControl "40/5400+30:1800+30"]

1. d4 {[%emt 0:02:12]} d5 {[%emt 0:00:04]} 2. c4 {[%emt 0:00:07]} e6 {[%emt 0:00:06]} 3. Nf3 {[%emt 0:00:05]} Nf6 {[%emt 0:00:13]} 4. g3 {[%emt 0:00:19]} dxc4 {[%emt 0:00:14]} 5. Qa4+ {[%emt 0:00:47]} Nbd7 {[%emt 0:04:50]} 6. Qxc4 {[%emt 0:02:24]} a6 {[%emt 0:00:12]} 7. Qc2 {[%emt 0:04:07]} b5 {[%emt 0:00:53]} 8. Bg2 {[%emt 0:08:24]} Bb7 {[%emt 0:00:14]} 9. O-O {[%emt 0:01:48]} c5 {[%emt 0:01:09]} 10. a4 {[%emt 0:15:39]} h6 {[%emt 0:33:14]} 11. Be3 {[%emt 0:22:00]} Rc8 {[%emt 0:20:23]} 12. dxc5 {[%emt 0:01:31]} Bxc5 {[%emt 0:00:06]} 13. Bxc5 {[%emt 0:00:29]} Rxc5 {[%emt 0:00:13]} 14. Qd2 {[%emt 0:02:40]} O-O {[%emt 0:01:39]} 15. axb5 {[%emt 0:01:11]} axb5 {[%emt 0:00:07]} 16. b4 {[%emt 0:02:24]} Rc8 {[%emt 0:03:07]} 17. Nc3 {[%emt 0:05:39]} Ne4 {[%emt 0:16:10]} 18. Nxe4 {[%emt 0:00:14]} Bxe4 $11 {[%emt 0:00:02]} 19. Rfd1 {[%emt 0:09:07]} Nf6 {[%emt 0:00:29]} 20. Ne5 {[%emt 0:03:01]} Qxd2 {[%emt 0:05:15]} 21. Rxd2 {[%emt 0:00:07]} Bxg2 {[%emt 0:00:07]} 22. Kxg2 {[%emt 0:00:06]} Nd5 {[%emt 0:00:21]} 23. Kg1 1/2-1/2

[Event "ROU-ch Women 2018"]
[Site "Olanesti"]
[Date "2018.05.17"]
[Round "4"]
[White "Sgircea, Silvia-Raluca"]
[Black "Sandu, Mihaela"]
[Result "1-0"]
[ECO "A16"]
[WhiteElo "2198"]
[BlackElo "2258"]
[Annotator "NA"]
[PlyCount "87"]
[EventDate "2018.??.??"]
[EventType "swiss"]
[EventCountry "ROU"]
[SourceTitle "playchess.com"]
[Source "ChessBase"]
[SourceQuality "1"]
[TimeControl "40/5400+30:1800+30"]

1. c4 {[%emt 0:00:00]} Nf6 {[%emt 0:00:56]} 2. Nc3 {[%emt 0:00:00]} g6 {[%emt 0:00:33]} 3. g3 {[%emt 0:00:03]} Bg7 {[%emt 0:00:09]} 4. Bg2 {[%emt 0:00:07]} d6 {[%emt 0:00:40]} 5. d3 {[%emt 0:00:48]} e5 {[%emt 0:01:44]} 6. e3 {[%emt 0:00:14]} O-O {[%emt 0:00:45]} 7. Nge2 {[%emt 0:00:06]} c6 {[%emt 0:10:15] A24: English Opening vs King's Indian: Lines without ...Nc6} (7... a5 8. O-O Re8 9. b3 h5 10. h3 Nbd7 11. Bb2 Nf8 12. Qd2 c6 13. e4 Ne6 14. Rad1 h4 15. g4 {1-0 (73) Rakhmanov,A (2667)-Naiditsch,A (2687) Tallinn 2016}) 8. e4 {[%emt 0:00:40]} a6 {[%emt 0:02:14] LiveBook: 250 Games} 9. O-O {[%emt 0:01:25]} b5 {[%emt 0:00:25]} 10. h3 {[%emt 0:02:25]} Be6 {[%emt 0:08:09]} 11. b3 {[%emt 0:00:47]} b4 {[%emt 0:21:02]} 12. Na4 {[%emt 0:00:49]} Re8 $146 {[%emt 0:05:40]} ({Predecessor:} 12... c5 13. f4 Bd7 14. Nb2 Nc6 15. f5 {1-0 (60) Martinez Alcantara,J (2295)-Gonzalez Perez,A (2494) Barcelona 2014}) 13. Be3 {[%emt 0:02:45]} Nbd7 {[%emt 0:06:46]} 14. Qd2 {[%emt 0:14:23]} a5 {[%emt 0:00:59]} 15. f4 {[%emt 0:04:18]} exf4 {[%emt 0:00:07]} 16. gxf4 {[%emt 0:00:52]} Qe7 {[%emt 0:03:12]} (16... Nh5 $11) 17. Nd4 {[%emt 0:04:33]} Rac8 {[%emt 0:00:38]} 18. Rae1 {[%emt 0:10:14]} Nb8 {[%emt 0:02:06]} 19. Nxe6 {[%emt 0:15:31]} Qxe6 {[%emt 0:00:55]} 20. c5 {[%emt 0:05:32]} d5 {[%emt 0:02:59]} 21. Nb6 {[%emt 0:04:16]} Rcd8 {[%emt 0:02:44] [#]} 22. exd5 {[%emt 0:00:55]} ({Better is} 22. f5 $1 $16 {[%cal Rf5e6]} Qe5 23. d4 Nxe4 24. dxe5 Nxd2 25. Bxd2 Bxe5 26. fxg6 hxg6 27. Bg5 Bd4+ 28. Kh2) 22... cxd5 {[%emt 0:01:33]} 23. f5 {[%emt 0:04:13]} Qc6 $1 {[%emt 0:01:21]} 24. Qf2 {[%emt 0:04:28]} Nbd7 $16 {[%emt 0:04:05]} ({Better is} 24... Re5 $14) 25. fxg6 {[%emt 0:02:34]} Ne5 {[%emt 0:05:21]} 26. gxf7+ {[%emt 0:00:15]} Nxf7 {[%emt 0:00:05]} 27. Bd4 {[%emt 0:01:19]} Rxe1 {[%emt 0:00:06]} 28. Rxe1 {[%emt 0:00:05]} Nh5 {[%emt 0:00:31]} 29. Bxg7 {[%emt 0:09:51]} Nxg7 {[%emt 0:00:04]} 30. d4 {[%emt 0:00:39]} Qg6 {[%emt 0:03:32]} 31. Kh2 {[%emt 0:01:12]} Kh8 {[%emt 0:02:27]} 32. Nxd5 {[%emt 0:00:45]} Qh5 {[%emt 0:01:04]} 33. Nf6 {[%emt 0:01:34]} Qg5 {[%emt 0:02:25]} 34. Be4 {[%emt 0:02:02]} Ne6 {[%emt 0:04:38]} 35. Nxh7 {[%emt 0:01:54]} Qg7 {[%emt 0:00:09]} 36. Nf6 {[%emt 0:02:29]} Neg5 {[%emt 0:03:01]} 37. Qh4+ {[%emt 0:00:55]} Qh6 {[%emt 0:04:00]} 38. Qxh6+ {[%emt 0:00:26]} Nxh6 {[%emt 0:00:02]} 39. c6 {[%emt 0:00:58]} Rf8 {[%emt 0:01:00]} 40. Nd7 {[%emt 0:00:00]} Re8 {[%emt 0:01:04]} 41. Ne5 {[%emt 0:01:28]} Nhf7 {[%emt 0:05:20]} 42. Bd5 {[%emt 0:06:42]} Nd6 {[%emt 0:03:22]} 43. Nf7+ {[%emt 0:00:41]} Ngxf7 {[%emt 0:00:12]} 44. Rxe8+ {[%emt 0:00:06]} 1-0

[Event "ROU-ch Women 2018"]
[Site "Olanesti"]
[Date "2018.05.17"]
[Round "4"]
[White "Ciocan, Maria-Alexandra"]
[Black "Lehaci, Miruna-Daria"]
[Result "0-1"]
[ECO "C17"]
[WhiteElo "2021"]
[BlackElo "1905"]
[Annotator "NA"]
[PlyCount "128"]
[EventDate "2018.??.??"]
[EventType "swiss"]
[EventCountry "ROU"]
[SourceTitle "playchess.com"]
[Source "ChessBase"]
[SourceQuality "1"]
[TimeControl "40/5400+30:1800+30"]

1. e4 {[%emt 0:05:05]} e6 {[%emt 0:00:04]} 2. d4 {[%emt 0:00:20]} d5 {[%emt 0:00:05]} 3. Nc3 {[%emt 0:00:05]} Bb4 {[%emt 0:02:08]} 4. e5 {[%emt 0:00:10]} c5 {[%emt 0:00:03]} 5. Qg4 {[%emt 0:00:12]} Ne7 {[%emt 0:05:37]} 6. dxc5 {[%emt 0:00:21]} Nbc6 {[%emt 0:06:57]} 7. Bd2 {[%emt 0:00:27]} Bxc5 {[%emt 0:08:29]} (7... O-O $15) 8. Nf3 {[%emt 0:05:28] C17: French: 3 Nc3 Bb4 4 e5 c5 sidelines} a6 {[%emt 0:05:02]} (8... O-O 9. Na4 Bb6 10. Nxb6 Qxb6 11. O-O-O f5 12. exf6 Rxf6 13. Qh5 e5 14. Bg5 Rf5 15. Nh4 g6 {1-0 (42) Efimov,I (2433)-Saiboulatov,D (2395) Novi Sad 2009}) 9. Bd3 {[%emt 0:09:57]} Nb4 {[%emt 0:16:40]} 10. Qxg7 {[%emt 0:05:55]} Nxd3+ $146 {[%emt 0:00:05]} ({Predecessor:} 10... Rg8 11. Qxh7 Rxg2 12. O-O-O Nxd3+ 13. cxd3 Qc7 14. Ng5 {1-0 (23) Fabian,J (2258)-Torotto,A (2180) Slovakia 2000}) 11. cxd3 {[%emt 0:00:05]} Ng6 {[%emt 0:00:07]} 12. Ng5 {[%emt 0:01:58]} Qc7 {[%emt 0:00:10]} 13. O-O {[%emt 0:04:39]} Bf8 {[%emt 0:01:07]} 14. Qf6 {[%emt 0:01:20]} h6 {[%emt 0:00:37]} 15. Rac1 {[%emt 0:11:48]} Qe7 {[%emt 0:15:33]} 16. Qxe7+ {[%emt 0:02:34]} Bxe7 {[%emt 0:00:04]} 17. Nf3 {[%emt 0:00:05]} Bd7 {[%emt 0:00:06]} 18. Ne2 {[%emt 0:05:09]} Bb5 {[%emt 0:01:15]} 19. Rfd1 {[%emt 0:12:10]} Bxd3 {[%emt 0:00:40]} 20. Ned4 {[%emt 0:00:11]} Be4 {[%emt 0:04:58]} 21. Rc7 {[%emt 0:06:00]} Rb8 {[%emt 0:00:06]} 22. a4 $11 {[%emt 0:03:59]} Bd8 {[%emt 0:05:29]} 23. Rcc1 {[%emt 0:00:10]} Be7 {[%emt 0:04:17]} 24. Bc3 {[%emt 0:04:43]} Nf4 {[%emt 0:05:13]} 25. Ne1 {[%emt 0:05:30]} Bc5 {[%emt 0:01:01]} 26. Kf1 {[%emt 0:00:42]} Bg6 {[%emt 0:10:47]} 27. g3 {[%emt 0:01:03]} Nh5 {[%emt 0:00:11]} 28. b4 {[%emt 0:02:08]} Be7 {[%emt 0:00:40]} 29. Nd3 {[%emt 0:02:19]} Ng7 {[%emt 0:01:13]} 30. b5 {[%emt 0:01:55]} Nf5 {[%emt 0:01:15]} 31. bxa6 {[%emt 0:02:35]} bxa6 {[%emt 0:01:51]} 32. Nc6 {[%emt 0:00:12]} Ra8 {[%emt 0:01:20]} 33. a5 {[%emt 0:01:31]} Bg5 {[%emt 0:00:18]} 34. Rb1 {[%emt 0:00:43]} O-O {[%emt 0:00:09]} 35. h4 {[%emt 0:01:18]} Rfc8 {[%emt 0:00:09]} 36. Rb6 {[%emt 0:01:23]} Bd8 {[%emt 0:02:00]} 37. Nxd8 {[%emt 0:01:28]} Rxc3 {[%emt 0:00:05]} 38. Nc6 {[%emt 0:00:15]} Nxg3+ {[%emt 0:00:46]} 39. fxg3 {[%emt 0:01:42]} Bxd3+ {[%emt 0:00:05]} 40. Kf2 {[%emt 0:00:00]} Bc4 {[%emt 0:01:59]} 41. g4 {[%emt 0:05:17]} Rh3 {[%emt 0:01:34]} 42. h5 {[%emt 0:00:25]} Rh2+ {[%emt 0:07:58]} 43. Ke3 {[%emt 0:04:34]} Re2+ {[%emt 0:01:07]} 44. Kf4 {[%emt 0:02:58]} Re4+ {[%emt 0:02:11]} 45. Kg3 {[%emt 0:00:05]} Rxg4+ {[%emt 0:01:27]} 46. Kxg4 {[%emt 0:05:23]} Be2+ {[%emt 0:00:04]} 47. Kh4 {[%emt 0:02:26]} Bxd1 {[%emt 0:00:05]} 48. Rb4 {[%emt 0:01:04]} Be2 {[%emt 0:06:03]} 49. Rb2 {[%emt 0:01:47]} Bc4 {[%emt 0:02:58]} 50. Rf2 {[%emt 0:02:11]} Kg7 {[%emt 0:01:18]} 51. Rg2+ {[%emt 0:00:34]} Kf8 {[%emt 0:00:05]} 52. Rf2 {[%emt 0:00:22]} Bb5 {[%emt 0:02:14]} 53. Nd4 {[%emt 0:00:11]} Bd7 {[%emt 0:00:06]} 54. Rb2 {[%emt 0:01:56]} Rc8 {[%emt 0:00:27]} 55. Kg3 {[%emt 0:00:13]} Rc4 {[%emt 0:00:46]} 56. Rb8+ {[%emt 0:00:37]} Kg7 {[%emt 0:00:17]} 57. Nb3 {[%emt 0:00:52]} Bb5 {[%emt 0:00:24]} 58. Kf2 {[%emt 0:00:27]} Rh4 {[%emt 0:03:04]} 59. Nc5 {[%emt 0:00:37]} Rxh5 {[%emt 0:00:24]} 60. Rb7 {[%emt 0:00:40]} Rxe5 {[%emt 0:02:13]} 61. Rxb5 {[%emt 0:02:06]} d4 {[%emt 0:00:11]} 62. Nxe6+ {[%emt 0:01:52]} Rxe6 {[%emt 0:00:05]} 63. Rb6 {[%emt 0:00:08]} d3 {[%emt 0:01:41]} 64. Rb3 {[%emt 0:00:26]} Re5 {[%emt 0:01:09] Ke1} 0-1

[Event "ROU-ch Women 2018"]
[Site "Olanesti"]
[Date "2018.05.17"]
[Round "4"]
[White "Panainte, Andreea-Bianca"]
[Black "Ciolacu, Alessia-Mihaela"]
[Result "1/2-1/2"]
[ECO "C42"]
[WhiteElo "1894"]
[BlackElo "1843"]
[Annotator "NA"]
[PlyCount "103"]
[EventDate "2018.??.??"]
[EventType "swiss"]
[EventCountry "ROU"]
[SourceTitle "playchess.com"]
[Source "ChessBase"]
[SourceQuality "1"]
[TimeControl "40/5400+30:1800+30"]

1. e4 {[%emt 0:00:00]} e5 {[%emt 0:00:08]} 2. Nf3 {[%emt 0:00:00]} Nf6 {[%emt 0:00:08]} 3. Nxe5 {[%emt 0:00:00]} d6 {[%emt 0:00:07]} 4. Nf3 {[%emt 0:00:00]} Nxe4 {[%emt 0:00:11]} 5. Nc3 {[%emt 0:00:00]} Nxc3 {[%emt 0:00:12]} 6. dxc3 {[%emt 0:00:00]} Be7 {[%emt 0:00:15]} 7. Be3 {[%emt 0:01:23]} O-O {[%emt 0:00:59]} 8. Qd2 {[%emt 0:00:06] C42: Petroff Defence: 3 Nxe5 and unusual White 3rd moves} Nd7 {[%emt 0:00:52]} 9. Bd3 {[%emt 0:03:59]} (9. O-O-O c6 10. Kb1 d5 11. c4 Nb6 12. cxd5 Nxd5 13. Bc4 Bf5 14. Bxd5 cxd5 15. Qxd5 Qc8 {0-1 (39) Robson,R (2660)-Caruana,F (2804) Saint Louis 2018}) 9... c6 {[%emt 0:01:08]} 10. Nd4 {[%emt 0:04:33]} Ne5 {[%emt 0:03:51]} 11. O-O-O {[%emt 0:07:03]} d5 $146 {[%emt 0:09:56]} ({Predecessor:} 11... Qa5 12. Kb1 Nxd3 13. Qxd3 Re8 14. f3 Bf8 15. Bf4 Be6 16. a3 Qd5 17. Nxe6 Qxd3 18. cxd3 Rxe6 19. Rhe1 Rae8 20. Bg3 {½-½ (20) Murko,D (1634)-Zagorsek,D (1619) Ptuj 2012}) 12. f4 {[%emt 0:06:46]} Nxd3+ {[%emt 0:09:15]} 13. Qxd3 {[%emt 0:00:26]} Qc7 {[%emt 0:08:02]} 14. Nf5 {[%emt 0:02:56]} Bxf5 {[%emt 0:12:37]} 15. Qxf5 {[%emt 0:00:24]} b5 {[%emt 0:00:34]} 16. Rd3 {[%emt 0:02:05]} Bd6 {[%emt 0:13:57]} 17. Rf1 {[%emt 0:01:02]} Rfe8 {[%emt 0:02:20]} 18. Bd4 {[%emt 0:02:42]} Re4 {[%emt 0:02:33]} 19. Rdf3 {[%emt 0:15:56]} Rae8 {[%emt 0:03:12]} 20. Qg4 {[%emt 0:01:53]} f5 {[%emt 0:01:31]} 21. Qxf5 {[%emt 0:07:27]} Qe7 {[%emt 0:04:34]} 22. Be5 {[%emt 0:02:40]} (22. Rd1 $15) 22... Bxe5 {[%emt 0:01:03]} 23. fxe5 {[%emt 0:00:08]} Rxe5 {[%emt 0:00:22]} 24. Qf7+ {[%emt 0:02:15]} Qxf7 {[%emt 0:00:19]} 25. Rxf7 {[%emt 0:00:04]} Re1+ {[%emt 0:00:25]} 26. Rxe1 {[%emt 0:01:02]} Rxe1+ {[%emt 0:00:06]} 27. Kd2 {[%emt 0:00:02] [#]} Kxf7 {[%emt 0:00:28]} (27... Rh1 $1 $17 28. Rxa7 Rxh2) 28. Kxe1 {[%emt 0:00:05]} Ke6 {[%emt 0:00:55]} 29. Ke2 {[%emt 0:00:16]} Ke5 $15 {[%emt 0:01:39]} 30. Ke3 {[%emt 0:01:27]} c5 {[%emt 0:02:15]} 31. b3 {[%emt 0:06:02]} a6 {[%emt 0:04:01]} 32. a3 {[%emt 0:06:47]} a5 {[%emt 0:01:33]} 33. b4 {[%emt 0:07:32]} cxb4 {[%emt 0:05:05]} 34. cxb4 {[%emt 0:00:05]} d4+ {[%emt 0:00:59]} 35. Kd2 {[%emt 0:02:53]} axb4 {[%emt 0:00:51]} 36. axb4 {[%emt 0:00:05]} Ke4 {[%emt 0:00:09]} 37. Ke2 {[%emt 0:00:10]} g5 {[%emt 0:03:58]} 38. h3 {[%emt 0:00:28]} Kf4 {[%emt 0:02:10]} 39. Kf2 {[%emt 0:01:50]} h5 {[%emt 0:05:18]} 40. g3+ {[%emt 0:00:00]} Kf5 {[%emt 0:00:57]} 41. Kf3 {[%emt 0:02:28]} Ke5 {[%emt 0:02:55]} 42. Kf2 {[%emt 0:03:02]} h4 {[%emt 0:00:54]} 43. gxh4 {[%emt 0:00:21]} gxh4 {[%emt 0:00:08]} 44. Ke2 {[%emt 0:00:29]} Ke4 {[%emt 0:00:37]} 45. Kd2 {[%emt 0:00:50]} Kf4 {[%emt 0:00:27]} 46. Kd3 {[%emt 0:00:42]} Kg3 {[%emt 0:00:39]} 47. Kxd4 {[%emt 0:00:58]} Kxh3 {[%emt 0:00:06]} 48. c4 {[%emt 0:00:03]} bxc4 {[%emt 0:05:34]} 49. Kxc4 {[%emt 0:00:06]} Kg4 {[%emt 0:00:46]} 50. b5 {[%emt 0:00:05]} h3 {[%emt 0:00:06]} 51. b6 {[%emt 0:00:04]} h2 {[%emt 0:00:12]} 52. b7 1/2-1/2